bitfinex/quotes_ETHUSD_20250725
["timestamp","ask_amount","ask_price","bid_price","bid_amount"]
[1753411092315,0.1368,3663.1,3662.6,0.1368]
[1753411092469,0.1368,3662.9,3662.4,0.1368]
[1753411092671,5.4492,3663.0,3662.2,2.73053574]
[1753411092672,0.9282,3662.8,3662.2,2.73053574]
[1753411092897,0.9282,3662.8,3661.6,2.92450907]
[1753411092898,0.1368,3662.2,3661.6,0.3303]
[1753411093100,4.521,3662.1,3661.8,2.73082939]
[1753411093278,4.521,3662.1,3661.8,2.73087862]
[1753411093770,0.1368,3661.9,3661.3,2.73121893]
[1753411094110,0.1368,3661.7,3661.3,2.73121893]
[1753411094297,0.1368,3661.7,3661.2,2.73129255]
[1753411094298,4.9702,3661.6,3661.2,2.73129255]
[1753411094606,4.9702,3661.6,3661.1,0.04]
[1753411094607,0.1368,3661.4,3661.1,0.04]
[1753411094807,0.1368,3661.2,3661.1,0.04]
[1753411095106,4.6588,3661.2,3661.1,0.04]
[1753411096414,4.522,3661.2,3661.1,2.77141951]
[1753411096709,0.8286,3661.7,3661.6,2.73104653]
[1753411097016,0.1368,3661.6,3661.4,2.73118735]
[1753411097196,4.515,3661.5,3661.4,2.73118735]
[1753411098115,5.4232,3661.5,3661.2,0.004]
[1753411098411,0.1368,3661.3,3661.2,0.004]
[1753411098912,0.1368,3661.3,3661.2,2.73534491]
[1753411099210,4.6478,3661.3,3661.2,2.73534491]
[1753411100208,4.6458,3661.3,3661.2,2.73534491]
[1753411100898,5.554,3661.3,3661.2,2.73534491]
[1753411102312,0.1368,3661.3,3661.2,2.73534491]
[1753411102613,4.6388,3661.3,3661.2,2.73534491]
[1753411103175,4.6348,3661.3,3661.2,2.73534491]
[1753411103403,4.6348,3661.3,3661.2,0.004]
[1753411103911,5.0697,3661.3,3661.2,2.73534491]
[1753411104075,0.1368,3661.3,3661.2,2.73534491]
[1753411104277,4.6318,3661.3,3661.2,2.73534491]
[1753411104479,5.0667,3661.3,3661.2,0.004]
[1753411104805,5.0667,3661.3,3661.2,2.73534491]
[1753411105302,4.6318,3661.3,3661.2,2.73534491]
[1753411106016,4.6318,3661.3,3661.2,0.004]
[1753411106192,5.0667,3661.3,3661.2,0.004]
[1753411106617,5.54,3661.3,3661.2,0.004]
[1753411106804,6.3108,3661.3,3661.2,0.004]
[1753411107682,9.04207031,3661.3,3661.2,0.004]
[1753411108131,12.04207031,3661.3,3661.2,0.004]
[1753411108294,12.59207031,3661.3,3661.2,0.004]
[1753411108620,9.8608,3661.3,3661.2,0.004]
[1753411109226,12.59207031,3661.3,3661.2,0.004]
[1753411109613,9.3108,3661.3,3661.2,0.004]
[1753411110002,12.04207031,3661.3,3661.2,0.004]
[1753411111241,12.59207031,3661.3,3661.2,0.004]
[1753411111383,9.3108,3661.3,3661.2,0.004]
[1753411112034,9.28653,3661.3,3661.2,0.004]
[1753411112253,9.28453,3661.3,3661.2,0.004]
[1753411112920,12.56580031,3661.3,3661.2,0.004]
[1753411114345,10.08324008,3661.3,3661.2,0.004]
[1753411114482,12.56180031,3661.3,3661.2,0.004]
[1753411114918,12.81447905,3661.3,3661.2,0.004]
[1753411115077,12.56180031,3661.3,3661.2,0.004]
[1753411115497,8.09280031,3661.3,3661.2,0.004]
[1753411115696,12.56080031,3661.3,3661.2,0.004]
[1753411115891,12.81347729,3661.3,3661.2,0.004]
[1753411116090,12.81247729,3661.3,3661.2,0.004]
[1753411116300,12.55980031,3661.3,3661.2,0.004]
[1753411116794,12.81245253,3661.3,3661.2,0.004]
[1753411116999,12.81248732,3661.3,3661.2,0.004]
[1753411117196,8.09280031,3661.3,3661.2,0.004]
[1753411117603,12.8074936,3661.3,3661.2,0.004]
[1753411118806,12.8610936,3661.3,3661.2,0.004]
[1753411118993,12.8610936,3661.3,3661.1,0.041]
[1753411118994,6.28134491,3661.2,3661.1,0.041]
[1753411119200,8.2666382,3661.2,3661.1,0.041]
[1753411119712,8.84912029,3661.2,3661.1,0.041]
[1753411119917,3.8067,3660.2,3660.1,0.04]
[1753411120118,8.4005,3660.2,3660.1,0.04]
[1753411120329,8.8738,3660.2,3660.1,0.04]
[1753411120527,4.8517,3660.2,3660.1,0.04]
[1753411120695,4.5918,3660.2,3660.1,0.04]
[1753411120897,4.5918,3660.2,3660.1,2.77216578]
[1753411121238,5.5,3660.2,3660.1,0.04]
[1753411121442,3.77709114,3660.2,3660.1,0.04]
[1753411121756,11.78109114,3660.2,3660.1,0.04]
[1753411121894,8.499,3660.2,3660.1,0.04]
[1753411122318,9.049,3660.2,3660.1,0.04]
[1753411123393,11.78109114,3660.2,3660.1,0.04]
[1753411123733,9.049,3660.2,3660.1,0.04]
[1753411124092,11.78109114,3660.2,3660.1,0.04]
[1753411124297,12.58389114,3660.2,3660.1,0.04]
[1753411124518,3.55,3660.0,3659.9,0.2495]
[1753411124859,8.38773692,3660.0,3659.9,2.98181509]
[1753411125161,7.83673692,3660.0,3659.9,0.2495]
[1753411125368,6.34284043,3660.0,3659.9,0.2495]
[1753411125536,12.07982322,3660.0,3659.9,0.2495]
[1753411125723,12.86860762,3660.0,3659.9,0.2495]
[1753411125920,3.2824644,3659.7,3659.6,0.001]
[1753411126134,3.28283777,3659.2,3659.1,0.04]
[1753411126337,11.65643777,3659.2,3659.1,0.04]
[1753411126546,12.61743777,3659.2,3659.1,0.04]
[1753411126758,0.55,3658.8,3658.1,0.04]
[1753411126923,1.338,3658.2,3658.1,0.04]
[1753411127231,12.62038482,3658.2,3658.1,0.04]
[1753411128144,7.07233227,3657.2,3655.9,0.2775]
[1753411128471,8.9248,3657.2,3655.9,0.2775]
[1753411128673,3.1368,3657.2,3657.1,2.77440704]
[1753411128972,0.1368,3657.2,3657.1,3.05184774]
[1753411129131,4.456,3657.2,3657.1,0.6089407]
[1753411129465,0.1368,3657.5,3657.4,2.73418275]
[1753411129631,0.1368,3657.5,3657.1,0.6089407]
[1753411129632,4.5928,3657.5,3657.1,0.3174407]
[1753411129830,4.456,3657.5,3657.1,0.04]
[1753411130068,3.961,3657.4,3657.1,0.04]
[1753411130268,3.0,3657.2,3657.1,0.04]
[1753411130570,7.482,3657.2,3657.1,0.04]
[1753411130769,7.482,3657.2,3657.1,2.77440704]
[1753411131070,4.482,3657.2,3657.1,2.77440704]
[1753411131863,4.478,3657.2,3657.1,2.77433746]
[1753411132169,4.9518,3657.2,3657.1,2.77440704]
[1753411132586,1.2618,3657.7,3657.5,2.73410799]
[1753411132791,0.756,3658.1,3658.0,2.73373428]
[1753411133091,5.233,3658.1,3658.0,2.73373428]
[1753411133452,0.756,3658.5,3658.4,2.73343538]
[1753411133649,0.4872,3658.9,3658.6,2.73328595]
[1753411133880,3.0,3658.6,3657.9,0.2775]
[1753411134085,11.586,3658.7,3658.6,2.73328595]
[1753411134383,3.0,3658.6,3657.9,0.2775]
[1753411134544,7.108,3658.7,3658.6,2.73328595]
[1753411134750,11.583,3658.7,3658.6,2.73328595]
[1753411135167,0.7676,3659.8,3659.3,2.73276309]
[1753411135368,4.9488,3659.7,3659.1,2.73284839]
[1753411135591,0.04,3661.9,3656.8,3.0]
[1753411135899,0.4738,3661.1,3659.7,0.2775]
[1753411136116,4.501,3660.8,3660.3,2.73200807]
[1753411136400,4.501,3660.8,3659.7,0.2775]
[1753411136401,4.9748,3660.8,3660.6,2.73173122]
[1753411136900,1.3455856,3661.2,3660.8,2.73164335]
[1753411137086,4.499,3661.0,3660.8,2.73164335]
[1753411137297,4.499,3661.0,3660.0,0.2915]
[1753411137298,1.7964,3660.9,3659.3,0.2915]
[1753411137516,3.0,3660.6,3659.9,2.73229192]
[1753411137661,0.4738,3660.8,3659.2,0.2775]
[1753411137861,3.0,3660.6,3659.5,2.73261374]
[1753411138130,4.509,3660.5,3660.3,2.73200987]
[1753411138411,4.509,3660.4,3659.2,0.7478]
[1753411138578,4.51,3660.3,3659.3,0.34807095]
[1753411138762,4.509,3660.2,3659.8,2.73235825]
[1753411138965,4.509,3660.2,3659.9,2.7323141]
[1753411139200,3.0,3660.1,3659.2,0.569]
[1753411139561,0.4738,3660.5,3659.6,2.73247504]
[1753411139955,3.0,3660.3,3659.5,2.73257095]
[1753411140097,3.0,3660.3,3659.5,2.73261374]
[1753411140430,0.1368,3659.7,3659.2,0.2775]
[1753411140732,0.1368,3659.5,3658.9,0.1368]
[1753411140916,4.511,3659.4,3658.7,0.2775]
[1753411141096,0.1368,3659.1,3659.0,2.73298715]
[1753411141497,4.51,3659.3,3659.2,2.73283777]
[1753411141698,0.4872,3660.2,3658.9,0.02733061]
[1753411141894,0.1368,3659.7,3659.1,0.1368]
[1753411142125,0.1368,3659.7,3659.6,2.73252508]
[1753411142334,4.51,3660.1,3660.0,2.73224043]
[1753411142533,4.509,3660.1,3660.0,2.73224043]
[1753411142709,4.6438,3660.1,3660.0,2.73224043]
[1753411143398,4.6438,3660.1,3659.8,2.73233825]
[1753411143399,0.7816,3660.7,3660.3,2.7319419]
[1753411143614,4.504,3660.6,3660.2,2.73201764]
[1753411143937,0.1368,3660.2,3660.1,2.73216578]
[1753411144502,0.04,3660.9,3660.8,2.73164335]
[1753411144932,1e-08,3660.9,3660.8,3.33874335]
[1753411145305,1e-08,3660.9,3660.8,3.36605978]
[1753411145500,1e-08,3660.9,3660.8,3.33874335]
[1753411146320,1e-08,3660.9,3660.8,3.15994335]
[1753411147042,1e-08,3660.9,3660.8,3.95566158]
[1753411147738,1e-08,3661.6,3661.5,2.73112112]
[1753411148037,1e-08,3661.6,3661.5,3.00862112]
[1753411148239,1e-08,3661.6,3661.5,3.64303233]
[1753411148443,1e-08,3661.9,3661.8,2.73089737]
[1753411148639,1e-08,3661.9,3661.8,3.94619853]
[1753411148937,1e-08,3661.9,3661.8,4.52598956]
[1753411149149,1e-08,3661.9,3661.8,3.14519737]
[1753411149642,1e-08,3661.9,3661.7,2.73096406]
[1753411149854,1e-08,3661.9,3661.1,2.73141287]
[1753411150059,1.0978,3661.8,3661.3,2.73121268]
[1753411150273,0.961,3661.8,3661.3,2.73121268]
[1753411150477,0.1368,3661.5,3661.1,2.73134564]
[1753411150767,0.1368,3661.5,3660.5,0.2915]
[1753411150768,0.961,3661.4,3660.5,0.2775]
[1753411150965,0.1368,3661.1,3661.0,2.73149412]
[1753411151350,3.4992157,3661.8,3661.0,2.73149412]
[1753411151665,0.1368,3661.3,3660.9,2.73155787]
[1753411152064,0.1368,3661.3,3660.6,0.1368]
[1753411152265,0.1368,3660.8,3660.7,2.73171797]
[1753411152561,0.1368,3660.5,3660.4,2.73194186]
[1753411154141,0.961,3661.3,3660.6,2.73173146]
[1753411154471,0.1368,3660.7,3660.5,2.73184392]
[1753411154766,0.1368,3660.7,3660.6,2.7317926]
[1753411154992,0.1368,3660.7,3660.5,0.56006542]
[1753411155197,0.1368,3660.7,3660.5,2.73182148]
[1753411155356,0.1368,3660.7,3660.3,2.73195947]
[1753411155557,0.1368,3660.7,3660.4,2.73193885]
[1753411156596,0.1368,3660.7,3660.6,2.7317926]
[1753411157089,4.489,3661.2,3660.8,2.73158994]
[1753411157293,0.1368,3661.0,3660.8,2.73158994]
[1753411157480,0.1368,3661.0,3660.4,0.1368]
[1753411157680,0.1368,3661.0,3660.6,2.73174568]
[1753411157982,0.1368,3660.7,3660.3,2.7320165]
[1753411158186,0.1368,3660.7,3660.5,2.73181791]
[1753411158587,0.1368,3660.7,3660.4,2.73194186]
[1753411158902,0.1368,3660.7,3660.6,2.7317926]
[1753411159563,0.1368,3660.7,3660.2,0.1368]
[1753411159791,0.1368,3660.7,3660.6,2.7317926]
[1753411159991,0.904,3660.7,3660.6,2.7317926]
[1753411160203,0.1368,3660.7,3660.6,2.7317926]
[1753411160894,0.1368,3660.7,3660.5,2.7318512]
[1753411161395,0.1368,3660.7,3660.6,2.7317926]
[1753411161593,0.1368,3660.7,3660.2,0.1368]
[1753411161594,0.1368,3660.8,3660.5,2.73184498]
[1753411161805,0.1368,3660.8,3660.4,2.73191528]
[1753411162097,0.1368,3660.8,3660.2,2.86888855]
[1753411162274,0.1368,3660.8,3660.5,2.73185427]
[1753411162688,0.1368,3660.8,3660.6,2.73178067]
[1753411162987,0.1368,3660.8,3660.7,2.73171797]
[1753411163184,0.1368,3660.8,3660.4,2.73190025]
[1753411163508,0.1368,3660.8,3660.2,2.86886455]
[1753411163697,0.5656,3660.8,3660.4,2.73188526]
[1753411163900,0.634,3660.8,3660.4,2.73188526]
[1753411164086,0.4288,3660.7,3660.4,2.73188526]
[1753411164409,0.4288,3660.7,3660.5,2.73185651]
[1753411165020,4.483,3661.1,3659.4,0.2915]
[1753411165021,0.926,3660.6,3659.5,0.2775]
[1753411165326,2.73196746,3660.4,3659.1,0.04]
[1753411165490,0.1368,3660.0,3659.8,2.7323832]
[1753411165690,0.1368,3660.0,3659.5,2.86938133]
[1753411166013,0.926,3659.9,3659.1,0.04]
[1753411166233,0.926,3659.9,3659.1,2.77290694]
[1753411166234,0.9158,3659.6,3659.1,2.77290694]
[1753411166402,0.1368,3659.2,3659.1,0.04]
[1753411166605,3.51183777,3659.2,3659.1,0.04]
[1753411166915,3.51183777,3659.2,3658.4,0.001]
[1753411166916,2.73336066,3658.5,3658.4,0.001]
[1753411167117,4.473,3658.5,3658.4,0.001]
[1753411167427,5.399,3658.5,3658.4,0.001]
[1753411167853,5.25,3658.7,3658.4,0.001]
[1753411168004,0.926,3658.5,3658.4,0.001]
[1753411168406,3.65936066,3658.5,3658.4,0.001]
[1753411169337,0.779,3658.7,3658.4,0.001]
[1753411169539,4.481,3658.5,3658.4,2.73443538]
[1753411169837,4.481,3658.5,3658.4,0.001]
[1753411171734,8.957,3658.5,3658.4,0.001]
[1753411171929,0.926,3658.5,3658.4,0.001]
[1753411172130,4.484,3658.5,3658.4,0.001]
[1753411173053,1.3224,3659.1,3658.4,0.001]
[1753411173221,4.9118,3659.0,3658.5,2.73329799]
[1753411173423,0.926,3658.9,3658.5,2.73334741]
[1753411173621,0.926,3658.9,3658.4,2.73441139]
[1753411173825,0.926,3658.9,3658.5,2.73334954]
[1753411174132,0.926,3658.9,3658.7,2.73319329]
[1753411174328,0.926,3658.9,3658.8,2.73313654]
[1753411174546,0.4288,3658.9,3658.4,0.001]
[1753411174756,4.482,3658.8,3658.7,2.73320487]
[1753411175363,7.107,3659.2,3659.0,2.73298715]
[1753411175557,7.107,3659.2,3659.1,2.73291246]
[1753411175838,11.583,3659.2,3659.1,2.73291246]
[1753411176878,0.1368,3659.2,3659.1,2.73291246]
[1753411177073,4.472,3659.4,3659.3,2.73276309]
[1753411177365,4.472,3659.4,3658.9,2.86983457]
[1753411177602,1.2517,3660.2,3659.3,2.73276309]
[1753411177757,1.2517,3660.2,3660.0,2.73224043]
[1753411177758,4.471,3660.1,3660.0,2.73224043]
[1753411178167,4.6078,3660.1,3660.0,2.73224043]
[1753411179304,0.1368,3660.3,3660.0,3.27870298]
[1753411179499,4.6058,3660.6,3660.5,2.73186723]
[1753411180885,5.0346,3660.6,3660.0,0.1368]
[1753411181196,5.0346,3660.6,3659.6,0.1368]
[1753411181197,0.1368,3660.4,3659.6,0.1368]
[1753411181394,0.8176,3660.5,3660.4,2.73194186]
[1753411181592,4.469,3660.6,3660.5,2.73186723]
[1753411181793,0.1368,3660.5,3659.8,2.73238974]
[1753411182093,0.1368,3660.5,3660.4,2.73194186]
[1753411182294,0.1368,3660.5,3659.8,3.03475452]
[1753411182295,0.1368,3660.5,3660.1,2.73216154]
[1753411182621,4.465,3660.6,3659.8,2.73238974]
[1753411182622,0.1368,3660.3,3659.8,2.73238974]
[1753411182793,0.1368,3660.3,3660.1,2.73215065]
[1753411182997,0.1368,3660.3,3660.2,2.73209114]
[1753411183184,4.5978,3660.3,3659.7,0.1368]
[1753411183383,5.0266,3660.3,3660.0,2.73223657]
[1753411183589,5.0266,3660.3,3660.1,2.73215834]
[1753411183784,5.0266,3660.3,3660.0,2.73222603]
[1753411184029,5.0266,3660.3,3659.7,0.1368]
[1753411184030,4.5978,3660.3,3660.1,2.7321422]
[1753411184209,4.5978,3660.3,3659.7,0.1368]
[1753411184542,4.5978,3660.3,3660.2,2.73209114]
[1753411184846,4.461,3660.3,3660.2,2.73209114]
[1753411185331,6.1467,3660.3,3658.7,0.2775]
[1753411185620,0.9418,3660.2,3658.7,0.2775]
[1753411185826,0.1368,3659.4,3659.3,2.73275519]
[1753411186211,4.474,3659.4,3659.2,2.73282158]
[1753411186412,4.474,3659.4,3659.2,2.73282305]
[1753411186615,4.6108,3659.4,3659.3,2.73276309]
[1753411187190,4.474,3659.4,3659.3,2.73276309]
[1753411187394,3.0,3660.6,3659.3,2.73276309]
[1753411187395,0.04,3660.9,3660.8,2.73164335]
[1753411189698,1e-08,3660.9,3660.8,2.73164335]
[1753411192021,1e-08,3660.9,3660.3,0.2775]
[1753411192196,1e-08,3660.9,3660.8,2.73164335]
[1753411192533,1e-08,3660.9,3659.4,0.2775]
[1753411192710,0.7619,3660.7,3660.0,2.7322398]
[1753411193031,0.4579,3660.6,3659.8,2.73232169]
[1753411193331,0.4579,3660.6,3659.8,2.73237035]
[1753411193833,0.4839,3660.5,3659.0,0.2775]
[1753411194132,0.4579,3660.4,3659.0,1.0652747]
[1753411194327,3.1898628,3660.4,3659.5,2.73257305]
[1753411194530,0.4579,3660.4,3659.6,2.73252971]
[1753411194899,0.4579,3660.4,3659.7,2.73244455]
[1753411195110,0.4839,3660.3,3658.9,2.73303145]
[1753411195447,2.73264152,3659.5,3658.4,0.2785]
[1753411195744,2.73264152,3659.5,3658.4,3.01186462]
[1753411195745,4.511,3659.4,3658.4,3.01186462]
[1753411196049,4.511,3659.4,3658.5,2.7333073]
[1753411196608,4.511,3659.4,3658.4,3.57832785]
[1753411196813,0.4579,3659.5,3658.4,0.84489695]
[1753411197038,4.508,3659.4,3658.4,0.2785]
[1753411197228,4.508,3659.4,3658.8,2.73312865]
[1753411197427,0.1368,3659.0,3658.7,2.73319597]
[1753411197658,4.506,3658.9,3658.4,0.2785]
[1753411197839,0.1368,3659.2,3658.8,2.73312931]
[1753411198044,4.505,3659.1,3658.7,0.1368]
[1753411198214,4.505,3659.1,3658.4,0.001]
[1753411198215,0.9418,3659.0,3658.4,0.001]
[1753411198410,0.1368,3658.7,3658.4,0.001]
[1753411198835,0.9418,3658.6,3658.4,0.001]
[1753411199048,4.6418,3658.5,3658.4,0.001]
[1753411199241,5.0997,3658.5,3658.4,0.001]
[1753411199749,5.5836,3658.5,3658.4,0.001]
[1753411200845,5.0997,3658.5,3658.4,0.001]
[1753411201221,8.31696066,3658.5,3658.4,0.001]
[1753411201461,8.65426066,3658.5,3658.4,0.001]
[1753411201644,9.11216066,3658.5,3658.4,0.001]
[1753411202425,1.8738,3658.5,3658.4,0.001]
[1753411202623,6.3698,3658.5,3658.4,0.001]
[1753411203354,0.932,3658.5,3658.4,0.001]
[1753411203667,4.6308,3658.5,3658.4,0.001]
[1753411204260,5.0887,3658.5,3658.4,0.001]
[1753411204728,0.1368,3658.5,3658.4,0.001]
[1753411205064,4.488,3658.5,3658.4,0.001]
[1753411205375,9.09676066,3658.5,3658.4,0.001]
[1753411205669,12.09676066,3658.5,3658.4,0.001]
[1753411205870,2.73433227,3657.2,3657.1,0.04]
[1753411206054,8.03483227,3657.2,3657.1,0.04]
[1753411206256,9.11343227,3657.2,3657.1,0.04]
[1753411206626,6.3791,3657.2,3657.1,0.04]
[1753411206968,4.3615,3657.1,3655.3,0.2775]
[1753411207164,4.3615,3657.1,3655.1,0.04]
[1753411207165,3.54658013,3656.2,3655.1,0.04]
[1753411207372,8.04058013,3656.2,3655.1,0.04]
[1753411207530,0.55,3656.1,3655.1,0.04]
[1753411207731,3.5473284,3655.2,3655.1,0.04]
[1753411207927,8.9831284,3655.2,3655.1,0.04]
[1753411208133,6.2473,3655.2,3655.1,0.04]
[1753411208464,4.495,3655.2,3655.1,0.04]
[1753411208629,0.9418,3655.8,3655.1,0.04]
[1753411208968,0.7653,3655.9,3655.1,0.04]
[1753411209156,0.7653,3656.5,3655.1,0.04]
[1753411209357,7.112,3656.9,3655.2,0.4156]
[1753411209534,4.9559,3656.8,3655.3,0.6931]
[1753411209740,0.4839,3656.7,3655.4,0.02735678]
[1753411209948,0.4579,3656.8,3656.6,2.73474552]
[1753411210146,5.4378,3656.7,3655.5,0.2188]
[1753411210346,0.7653,3657.0,3655.6,0.1968]
[1753411210547,4.495,3656.9,3656.1,2.73508219]
[1753411210785,3.9418,3657.2,3656.8,2.73463137]
[1753411210934,4.499,3657.1,3656.9,2.73453784]
[1753411211394,3.9418,3657.2,3656.6,2.7347725]
[1753411211685,7.112,3657.3,3657.2,2.73433227]
[1753411211834,11.609,3657.3,3657.2,2.73433227]
[1753411212731,12.5508,3657.3,3656.8,2.73463011]
[1753411212932,0.9418,3657.2,3656.8,2.73463011]
[1753411213278,7.112,3657.3,3657.2,2.73433227]
[1753411213495,11.607,3657.3,3657.2,2.73433227]
[1753411213641,7.112,3657.3,3657.2,2.73433227]
[1753411213840,11.606,3657.3,3657.2,2.73433227]
[1753411214284,7.112,3657.3,3657.2,2.73433227]
[1753411214580,11.605,3657.3,3657.2,2.73433227]
[1753411214789,7.112,3657.3,3657.2,3.28120869]
[1753411215004,11.607,3657.3,3656.1,3.00859528]
[1753411215232,11.607,3657.3,3656.2,2.73502647]
[1753411215435,11.607,3657.3,3656.8,2.73461795]
[1753411215607,0.9225,3657.2,3656.4,2.73486527]
[1753411215803,0.9225,3657.2,3655.9,0.2775]
[1753411216006,2.73451745,3657.0,3656.2,2.73506807]
[1753411216228,0.7568,3656.8,3655.2,3.23211719]
[1753411216527,5.4195,3656.7,3656.1,2.73515017]
[1753411216726,0.4549,3656.7,3655.7,0.02735454]
[1753411216927,0.1368,3656.5,3656.4,2.73486999]
[1753411217113,4.6348,3656.5,3656.4,2.73486999]
[1753411217313,4.498,3656.5,3656.4,2.73486999]
[1753411218130,0.4549,3657.0,3656.0,0.1368]
[1753411218131,0.4549,3657.0,3656.5,2.73485573]
[1753411218308,4.498,3656.9,3656.8,2.73463137]
[1753411218485,4.495,3656.9,3656.3,0.1368]
[1753411218693,0.8056,3657.2,3657.0,2.73443634]
[1753411218931,0.1368,3657.0,3656.8,2.73460912]
[1753411219338,0.5917,3657.0,3656.7,2.7347007]
[1753411219638,0.1368,3657.0,3656.4,0.1368]
[1753411219840,0.1368,3657.0,3656.9,2.73455659]
[1753411220298,4.6268,3657.0,3656.9,2.73455659]
[1753411221326,5.5493,3657.0,3656.7,2.73464553]
[1753411221544,0.9225,3656.9,3656.6,2.73473984]
[1753411221858,0.1368,3656.6,3656.5,2.73484309]
[1753411222012,4.6328,3656.6,3656.3,2.73500533]
[1753411222220,0.9225,3656.5,3656.0,2.7352209]
[1753411222413,0.4549,3656.5,3656.4,2.73493053]
[1753411222918,0.4549,3656.5,3656.0,0.1368]
[1753411223119,4.6328,3656.6,3656.5,2.73485573]
[1753411224255,0.7861,3656.5,3655.0,0.2775]
[1753411224423,0.7861,3656.5,3655.7,2.73543399]
[1753411224624,0.7861,3656.5,3655.9,2.73525489]
[1753411224824,3.5210068,3656.5,3655.8,2.73536505]
[1753411225032,0.4549,3656.4,3655.8,2.73536505]
[1753411225237,0.1368,3655.9,3655.8,2.73536505]
[1753411225459,5.5573,3655.9,3655.8,2.73536505]
[1753411226634,2.73461938,3656.9,3655.8,2.73536505]
[1753411226635,0.7861,3656.9,3655.8,0.54708827]
[1753411226839,4.498,3656.8,3656.3,2.73495275]
[1753411227157,0.1368,3656.4,3656.3,2.73495275]
[1753411227357,4.6308,3656.4,3656.3,2.73495275]
[1753411227677,5.5533,3656.4,3655.8,0.1368]
[1753411227825,0.7861,3656.2,3655.6,2.73547273]
[1753411228022,0.7861,3656.2,3655.3,0.1368]
[1753411228023,0.1368,3655.7,3655.1,0.041]
[1753411228260,5.4155,3655.6,3655.1,0.041]
[1753411228569,0.9229,3655.2,3655.1,0.041]
[1753411228772,8.1527284,3655.2,3655.1,0.041]
[1753411229062,9.0752284,3655.2,3655.1,0.041]
[1753411229459,12.6252284,3655.2,3655.1,0.041]
[1753411229645,12.6258284,3655.2,3655.1,0.041]
[1753411229971,12.87628733,3655.2,3655.1,0.041]
[1753411230209,12.87628206,3655.2,3655.1,0.041]
[1753411230323,9.34,3655.2,3655.1,0.041]
[1753411230670,12.0758284,3655.2,3655.1,0.041]
[1753411231053,7.5818284,3655.2,3655.1,0.041]
[1753411231374,12.87195444,3655.2,3655.1,0.041]
[1753411232225,7.09070325,3655.1,3655.0,0.001]
[1753411232457,8.26332929,3655.1,3655.0,0.001]
[1753411233165,12.75932929,3655.1,3655.0,0.001]
[1753411233462,12.75927491,3655.1,3655.0,0.001]
[1753411233653,13.33614841,3655.1,3655.0,0.001]
[1753411233826,12.75927491,3655.1,3655.0,0.001]
[1753411234026,13.33617905,3655.1,3655.0,0.001]
[1753411234264,12.75927491,3655.1,3655.0,0.001]
[1753411234460,12.75527491,3655.1,3655.0,0.001]
[1753411235372,12.75527491,3655.1,3653.6,0.1368]
[1753411235373,0.55,3653.7,3651.4,0.3185]
[1753411235569,0.7524,3653.9,3651.4,0.3185]
[1753411235570,11.653,3653.6,3651.6,0.2188]
[1753411235730,5.4575,3653.5,3652.3,0.3185]
[1753411236067,4.9241119,3653.4,3651.9,0.3185]
[1753411236367,3.10936116,3653.4,3652.0,2.73817507]
[1753411236528,2.18686116,3653.4,3652.3,2.95677585]
[1753411236733,4.535,3653.3,3652.3,0.2188]
[1753411236931,4.535,3653.3,3652.1,0.24665614]
[1753411236932,5.4575,3653.3,3652.1,0.04885614]
[1753411237164,2.18686116,3653.4,3652.1,0.04885614]
[1753411237165,2.18686116,3653.4,3652.3,2.73795324]
[1753411237341,4.535,3653.3,3652.4,0.1978]
[1753411237550,4.535,3653.3,3652.7,2.73769749]
[1753411237753,2.18686116,3653.4,3652.6,0.2188]
[1753411237954,4.535,3653.3,3653.2,2.73732617]
[1753411238358,4.535,3653.3,3652.7,0.1978]
[1753411238547,4.535,3653.3,3653.2,2.73732617]
[1753411238742,2.44523848,3653.3,3652.0,0.1978]
[1753411238943,5.0036,3653.2,3652.8,2.73755752]
[1753411239147,5.0036,3653.2,3652.6,2.73777361]
[1753411239362,5.0036,3653.2,3652.1,2.78698248]
[1753411239363,5.4655,3653.2,3652.1,0.04885614]
[1753411239545,9.00212617,3653.2,3652.3,2.73799017]
[1753411239744,9.00212617,3653.2,3652.1,0.04885614]
[1753411239745,7.79119848,3653.2,3652.6,2.73773454]
[1753411239944,6.86769848,3653.2,3653.1,2.77740111]
[1753411240385,6.86769848,3653.2,3653.1,0.04]
[1753411240566,7.79019848,3653.2,3653.1,0.04]
[1753411241086,3.24419848,3653.2,3653.1,0.04]
[1753411241586,7.32959848,3653.2,3653.1,0.04]
[1753411241749,1.52239848,3653.2,3653.1,3.32890701]
[1753411241955,0.7991,3654.5,3653.2,2.73732617]
[1753411242265,0.7991,3654.5,3654.4,2.73642732]
[1753411242455,4.554,3654.5,3654.2,2.73656297]
[1753411242656,0.4676,3654.7,3654.3,2.73649383]
[1753411242657,4.554,3654.4,3654.3,2.73649383]
[1753411242970,4.554,3654.4,3654.1,2.7365873]
[1753411243278,5.4765,3654.4,3654.0,2.73670832]
[1753411243465,0.4549,3654.3,3654.0,2.73670832]
[1753411243889,0.4549,3654.3,3653.8,2.73687445]
[1753411243890,0.9225,3654.2,3653.8,2.73686658]
[1753411244061,5.4735,3654.1,3653.5,2.73709025]
[1753411244267,4.551,3654.0,3653.5,2.73704801]
[1753411244465,5.4735,3654.0,3653.2,2.73727204]
[1753411244669,0.7834,3653.8,3653.1,0.04]
[1753411244872,5.105,3653.7,3653.1,0.04]
[1753411245055,2.73732617,3653.2,3653.1,0.04]
[1753411245252,5.3394,3653.2,3653.1,0.04]
[1753411245451,6.3782,3653.2,3653.1,0.04]
[1753411246065,6.3742,3653.2,3653.1,0.04]
[1753411246270,1.8222,3653.2,3653.1,0.04]